bitfinex-derivatives/quotes_SOLF0:USTF0_20241107
["timestamp","ask_amount","ask_price","bid_price","bid_amount"]
[1730960599786,6.60735232,187.92,187.82,6.54527255]
[1730960599986,2.6594,187.89,187.84,6.54527255]
[1730960601184,6.60735232,187.92,187.88,2.6595]
[1730960601385,9.08127255,187.93,187.86,6.54527255]
[1730960601683,6.54527255,187.91,187.86,6.54527255]
[1730960602789,2.6592,187.9,187.85,2.6599]
[1730960604489,6.54527255,187.91,187.83,2.84]
[1730960604787,6.54527255,187.91,187.84,9.20527255]
[1730960605289,2.6594,187.89,187.84,9.20527255]
[1730960605490,6.54527255,187.91,187.84,9.20527255]
[1730960605795,2.6594,187.89,187.84,9.20527255]
[1730960607397,2.6598,187.87,187.81,2.6605]
[1730960607595,2.6598,187.87,187.81,6.54527255]
[1730960607987,2.6598,187.87,187.82,2.6603]
[1730960608188,2.6598,187.87,187.81,6.54527255]
[1730960608688,2.6599,187.86,187.8,12.04587255]
[1730960608995,2.6599,187.86,187.8,9.38527255]
[1730960611193,2.6599,187.86,187.82,6.54527255]
[1730960611691,2.6607,187.8,187.73,2.6616]
[1730960611892,2.6607,187.8,187.74,6.54527255]
[1730960612498,2.6607,187.8,187.76,6.54527255]
[1730960612696,6.54527255,187.83,187.76,6.54527255]
[1730960612901,2.6605,187.81,187.76,6.54527255]
[1730960615295,2.6607,187.8,187.76,6.54527255]
[1730960615695,2.6605,187.81,187.76,6.54527255]
[1730960617703,6.54527255,187.83,187.76,6.54527255]
[1730960618003,2.6604,187.82,187.76,9.20637255]
[1730960619001,2.6604,187.82,187.77,6.54527255]
[1730960619503,6.54527255,187.83,187.68,3.3392]
[1730960619708,2.6606,187.81,187.77,6.54527255]
[1730960620293,2.6606,187.81,187.74,2.84]
[1730960620294,2.6609,187.78,187.74,9.38527255]
[1730960621204,2.6608,187.79,187.74,9.38527255]
[1730960621997,2.6608,187.79,187.77,6.54527255]
[1730960622402,2.6606,187.81,187.77,6.54527255]
[1730960624704,1.2257,187.87,187.79,6.54527255]
[1730960625002,7.77097255,187.87,187.8,6.54527255]
[1730960625608,2.6601,187.85,187.8,6.54527255]
[1730960625804,7.77097255,187.87,187.8,6.54527255]
[1730960626705,2.6601,187.84,187.8,9.20587255]
[1730960628106,2.6601,187.84,187.8,6.54527255]
[1730960630023,1.2257,187.87,187.83,2.6601]
[1730960630323,2.6595,187.88,187.81,6.54527255]
[1730960630324,6.54527255,187.88,187.81,6.54527255]
[1730960630513,2.6598,187.86,187.81,9.20567255]
[1730960631610,2.4395,187.91,187.81,6.54527255]
[1730960631810,2.6596,187.88,187.82,2.6603]
[1730960632008,6.54527255,187.87,187.79,2.84]
[1730960632209,2.6601,187.84,187.81,6.54527255]
[1730960633709,2.6601,187.84,187.79,2.84]
[1730960633710,2.6596,187.88,187.82,9.20557255]
[1730960634015,6.54527255,187.91,187.84,6.54527255]
[1730960634219,6.54527255,187.91,187.84,9.38527255]
[1730960634416,2.6595,187.88,187.84,9.38527255]
[1730960634722,6.54527255,187.91,187.84,9.38527255]
[1730960634923,2.6597,187.87,187.84,9.38527255]
[1730960635123,2.6597,187.87,187.84,2.84]
[1730960635419,2.6597,187.87,187.83,2.84]
[1730960635621,2.6601,187.84,187.82,2.84]
[1730960635822,6.54527255,187.87,187.82,2.84]
[1730960636219,2.6601,187.84,187.81,9.38527255]
[1730960636917,11.86745818,187.94,187.81,9.38527255]
[1730960637218,6.54527255,187.88,187.81,9.38527255]
[1730960637522,2.66,187.85,187.81,9.38527255]
[1730960638420,2.66,187.85,187.81,6.54527255]
[1730960638614,2.6598,187.86,187.82,2.84]
[1730960639429,2.6598,187.86,187.81,2.6604]
[1730960639725,2.6598,187.86,187.81,5.5004]
[1730960640024,2.6598,187.86,187.82,6.54527255]
[1730960643528,6.54527255,187.88,187.82,6.54527255]
[1730960643721,6.54527255,187.9,187.83,6.54527255]
[1730960643918,6.54527255,187.9,187.83,9.38527255]
[1730960644723,2.6595,187.88,187.84,2.66]
[1730960646225,2.6595,187.88,187.83,12.04547255]
[1730960646422,2.6596,187.87,187.83,12.04547255]
[1730960646623,6.54527255,187.9,187.83,9.38527255]
[1730960646823,6.54527255,187.88,187.83,9.38527255]
[1730960647025,6.54527255,187.88,187.83,6.54527255]
[1730960647924,2.6598,187.86,187.83,6.54527255]
[1730960648426,11.86745818,187.94,187.83,6.54527255]
[1730960648625,6.54527255,187.9,187.83,6.54527255]
[1730960649331,2.6597,187.87,187.83,6.54527255]
[1730960655236,2.6597,187.87,187.83,9.20547255]
[1730960655735,2.6595,187.88,187.83,9.20547255]
[1730960657434,2.6595,187.88,187.84,2.6599]
[1730960657933,2.6595,187.88,187.85,6.54527255]
[1730960661136,2.6595,187.88,187.82,2.84]
[1730960661431,2.6595,187.88,187.84,9.20517255]
[1730960663029,2.6595,187.88,187.85,2.6599]
[1730960663635,2.6595,187.88,187.84,9.20527255]
[1730960663929,6.54527255,187.92,187.86,6.54527255]
[1730960664233,6.60735232,187.93,187.87,6.54527255]
[1730960664436,9.08337255,187.94,187.87,6.54527255]
[1730960664834,2.6592,187.9,187.87,6.54527255]
[1730960665227,2.6592,187.9,187.86,9.20497255]
[1730960665438,2.6592,187.9,187.86,2.6597]
[1730960665739,2.6592,187.9,187.86,9.20497255]
[1730960667024,2.6595,187.89,187.84,2.66]
[1730960667238,2.6595,187.89,187.86,6.54527255]
[1730960672738,6.54527255,187.92,187.86,6.54527255]
[1730960672938,2.6592,187.9,187.86,6.54527255]
[1730960673740,2.6592,187.91,187.86,9.20497255]
[1730960674442,2.6592,187.91,187.87,2.84]
[1730960678040,2.6592,187.91,187.87,9.38527255]
[1730960681747,2.6592,187.91,187.87,6.54527255]
[1730960682455,2.6592,187.91,187.87,9.20487255]
[1730960682750,2.659,187.92,187.89,6.54527255]
[1730960683141,2.659,187.92,187.86,2.84]
[1730960683342,2.659,187.92,187.89,6.54527255]
[1730960685950,2.659,187.92,187.89,9.20457255]
[1730960689750,2.6587,187.94,187.9,9.20447255]
[1730960690756,6.60735232,187.95,187.92,9.20417255]
[1730960690954,6.54527255,188.0,187.94,6.54527255]
[1730960691160,6.54527255,188.02,187.97,6.54527255]
[1730960691557,6.54527255,188.02,187.97,1.95626975]
[1730960692758,6.54527255,188.02,187.97,1.04174316]
[1730960693858,2.658,187.99,187.97,1.04174316]
[1730960694058,2.658,187.99,187.95,2.6585]
[1730960694259,1.3099,188.04,187.91,2.84]
[1730960694260,1.3099,188.04,187.97,6.54527255]
[1730960694459,1.3099,188.04,187.96,2.82]
[1730960694662,1.3099,188.04,187.98,6.54527255]
[1730960694863,2.6578,188.0,187.98,6.54527255]
[1730960695364,1.3099,188.04,187.98,6.54527255]
[1730960695661,2.6576,188.02,187.98,6.54527255]
[1730960696056,2.6576,188.02,187.97,2.6581]
[1730960696254,1.3099,188.04,188.0,6.54527255]
[1730960696463,1.3099,188.04,187.99,6.54527255]
[1730960696666,6.54527255,188.02,187.96,2.82]
[1730960696862,1.3099,188.04,187.98,6.54527255]
[1730960696863,7.85517255,188.04,187.98,6.54527255]
[1730960697966,2.6577,188.01,187.98,6.54527255]
[1730960700267,7.85517255,188.04,187.98,6.54527255]
[1730960700268,2.6579,187.99,187.98,6.54527255]
[1730960700566,2.6579,187.99,187.96,2.82]
[1730960700766,2.6579,187.99,187.97,6.54527255]
[1730960703068,2.6579,187.99,187.98,6.54527255]
[1730960706273,2.6579,187.99,187.96,2.82]
[1730960706461,2.6579,187.99,187.98,6.54527255]
[1730960706668,2.6579,187.99,187.96,2.82]
[1730960706869,2.6579,187.99,187.98,6.54527255]
[1730960707575,7.85517255,188.04,187.96,2.82]
[1730960707775,7.85517255,188.04,187.98,6.54527255]
[1730960707969,2.6579,188.0,187.98,6.54527255]
[1730960708279,1.3099,188.04,187.98,6.54527255]
[1730960709873,2.6577,188.01,187.98,6.54527255]
[1730960711979,2.6577,188.01,188.0,6.54527255]
[1730960712369,2.5376,188.05,188.0,6.54527255]
[1730960712871,1.2317,188.13,188.03,6.54527255]
[1730960713076,1.2317,188.13,188.1,6.54527255]
[1730960713269,2.6563,188.11,188.1,6.54527255]
[1730960714278,2.6562,188.12,188.1,6.54527255]
[1730960715976,2.6562,188.12,188.09,2.82]
[1730960716278,2.6562,188.12,188.11,6.54527255]
[1730960721976,1.2054,188.18,188.09,2.82]
[1730960722281,1.2054,188.18,187.99,18.64863057]
[1730960722282,6.54527255,188.15,187.99,18.64863057]
[1730960722484,6.54527255,188.15,188.09,6.54527255]
[1730960722685,2.6564,188.11,188.09,6.54527255]
[1730960723583,2.6565,188.1,187.95,15.96]
[1730960723785,9.17913566,188.15,188.08,6.54527255]
[1730960724084,2.6565,188.09,188.08,6.54527255]
[1730960725482,2.6565,188.09,188.04,2.6572]
[1730960725483,9.17913566,188.15,188.04,5.4772]
[1730960725680,2.6567,188.08,188.04,5.4772]
[1730960726281,2.63386311,188.15,188.04,2.82]
[1730960726490,2.82,188.14,187.92,54.28]
[1730960726678,2.82,188.14,187.95,2.82]
[1730960726679,2.5169,188.13,187.95,2.82]
[1730960727488,6.54527255,188.11,188.05,6.54527255]
[1730960727898,2.657,188.06,188.05,6.54527255]
[1730960730484,2.6565,188.09,188.05,9.20237255]
[1730960730785,2.5169,188.13,188.08,6.54527255]
[1730960731186,2.6563,188.11,188.08,6.54527255]
[1730960731983,2.6563,188.11,188.1,6.54527255]
[1730960732178,2.6561,188.12,188.1,6.54527255]
[1730960733185,9.36527255,188.15,188.1,6.54527255]
[1730960733380,2.6562,188.11,188.1,6.54527255]
[1730960734787,2.6561,188.12,188.1,6.54527255]
[1730960735195,6.54527255,188.17,188.1,6.54527255]
[1730960735695,6.54527255,188.17,188.09,2.6565]
[1730960735990,6.54527255,188.17,188.11,6.54527255]
[1730960736593,2.5855,188.19,188.11,6.54527255]
[1730960736789,2.656,188.13,188.11,6.54527255]
[1730960739602,6.54527255,188.17,188.11,6.54527255]
[1730960739797,2.6561,188.12,188.11,6.54527255]
[1730960749001,2.6559,188.14,188.11,6.54527255]
[1730960749202,6.54527255,188.18,188.12,6.54527255]
[1730960750108,2.6561,188.12,188.07,2.6568]
[1730960750309,6.54527255,188.15,188.06,2.82]
[1730960750709,6.54527255,188.15,188.1,6.54527255]
[1730960751502,2.5855,188.19,188.1,6.54527255]
[1730960751710,6.54527255,188.15,188.1,6.54527255]
[1730960752315,2.6562,188.12,188.1,6.54527255]
[1730960754707,2.656,188.13,188.1,6.54527255]
[1730960754915,6.54527255,188.17,188.1,6.54527255]
[1730960755414,2.6562,188.12,188.1,6.54527255]
[1730960757814,2.6562,188.12,188.08,2.6566]
[1730960758018,2.6562,188.12,188.09,6.54527255]
[1730960760107,6.54527255,188.15,187.97,18.5727437]
[1730960760416,6.54527255,188.13,188.03,2.6573]
[1730960760617,6.54527255,188.13,188.06,6.54527255]
[1730960760820,2.6567,188.08,188.06,6.54527255]
[1730960762113,2.6563,188.11,188.06,9.20217255]
[1730960762414,2.6563,188.11,188.08,6.54527255]
[1730960763418,6.54527255,188.14,188.08,6.54527255]
[1730960763613,2.6565,188.09,188.08,6.54527255]
[1730960764916,2.6563,188.11,188.08,6.54527255]
[1730960765111,6.54527255,188.1,187.94,3.345]
[1730960765620,2.6571,188.05,188.03,6.54527255]
[1730960768527,2.6571,188.05,188.0,5.4778]
[1730960768712,6.54527255,188.08,188.0,2.82]
[1730960769029,6.54527255,188.08,188.01,6.54527255]
[1730960769820,2.657,188.06,188.01,6.54527255]
[1730960770022,6.54527255,188.08,188.01,6.54527255]
[1730960770718,2.6572,188.05,188.01,6.54527255]
[1730960775032,2.6572,188.05,188.03,6.54527255]
[1730960776522,2.6572,188.05,188.0,2.6578]
[1730960776933,6.54527255,188.02,187.86,2.70131431]
[1730960777230,6.54527255,188.0,187.94,6.54527255]
[1730960777424,2.6583,187.97,187.94,6.54527255]
[1730960777834,6.54527255,187.97,187.91,6.54527255]
[1730960778022,2.65614482,188.01,187.88,5.4794]
[1730960778023,6.54527255,187.95,187.88,5.4794]
[1730960778329,6.54527255,187.94,187.82,3.2267]
[1730960778541,2.6591,187.92,187.85,5.4798]
[1730960778723,2.6591,187.92,187.87,6.54527255]
[1730960779025,2.6591,187.92,187.88,6.54527255]
[1730960779230,8.99507255,187.94,187.88,6.54527255]
[1730960779437,11.65387255,187.94,187.88,6.54527255]
[1730960780429,11.65387255,187.94,187.88,9.20477255]
[1730960781625,2.6589,187.92,187.85,2.82]
[1730960781830,8.87650196,187.97,187.89,6.54527255]
[1730960782026,6.54527255,187.95,187.89,6.54527255]
[1730960783732,2.6588,187.93,187.89,6.54527255]
[1730960784132,3.6714,187.97,187.92,6.54527255]
[1730960784330,3.6714,187.97,187.88,2.6594]
[1730960784331,6.3296,187.97,187.88,2.6594]
[1730960784530,3.6714,187.97,187.85,2.82]
[1730960784727,6.54527255,187.96,187.85,2.82]
[1730960784924,2.659,187.92,187.88,6.54527255]
[1730960786130,2.659,187.92,187.87,2.6595]
[1730960786331,9.20407255,187.94,187.89,6.54527255]
[1730960786734,9.20407255,187.94,187.87,2.6595]
[1730960786735,6.54527255,187.94,187.87,2.6595]
[1730960786929,6.54527255,187.94,187.9,6.54527255]
[1730960787639,2.6591,187.92,187.88,6.54527255]
[1730960789325,6.54527255,187.94,187.87,2.6596]
[1730960789537,6.54527255,187.96,187.89,6.54527255]
[1730960790241,6.54527255,187.96,187.9,6.54527255]
[1730960791238,2.6586,187.95,187.9,6.54527255]
[1730960791438,6.54527255,187.96,187.9,6.54527255]
[1730960792137,6.4714,187.97,187.85,2.82]
[1730960792335,6.4714,187.97,187.91,6.54527255]
[1730960792634,3.6714,187.97,187.85,2.82]
[1730960792843,10.21667255,187.97,187.91,6.54527255]
[1730960793235,10.21667255,187.97,187.85,2.82]
[1730960793541,10.21667255,187.97,187.89,6.54527255]
[1730960794337,2.6588,187.94,187.89,9.20447255]
[1730960794642,10.21667255,187.97,187.89,9.20447255]
[1730960795040,10.21667255,187.97,187.89,2.6592]
[1730960795233,10.21667255,187.97,187.9,6.54527255]
[1730960795735,2.6589,187.93,187.9,6.54527255]
[1730960797044,2.6586,187.95,187.91,6.54527255]
[1730960797640,6.54527255,187.96,187.9,9.20447255]
[1730960797836,2.6586,187.94,187.9,9.20447255]
[1730960798544,6.54527255,187.96,187.85,2.82]
[1730960798750,3.6714,187.97,187.85,2.82]
[1730960798751,9.20427255,187.92,187.85,2.82]
[1730960798943,2.659,187.92,187.87,6.54527255]
[1730960799158,2.659,187.92,187.87,9.20487255]
[1730960800139,2.659,187.92,187.88,6.54527255]
[1730960803249,2.659,187.92,187.87,2.6596]
[1730960803544,6.54527255,187.91,187.84,2.66]
[1730960803747,6.54527255,187.91,187.85,6.54527255]
[1730960803945,6.54527255,187.89,187.77,2.0056]
[1730960804150,6.54527255,187.89,187.82,6.54527255]
[1730960804537,2.6596,187.86,187.82,6.54527255]
[1730960806660,2.6593,187.88,187.84,6.54527255]
[1730960808346,2.5948,187.89,187.84,6.54527255]
[1730960808548,3.9258,187.9,187.86,6.54527255]
[1730960809046,2.6591,187.89,187.86,6.54527255]
[1730960812651,1.2188,187.97,187.87,9.20457255]
[1730960812952,1.2188,187.97,187.89,6.54527255]
[1730960812953,6.54527255,187.95,187.89,6.54527255]
[1730960813751,2.6587,187.92,187.89,6.54527255]
[1730960814458,2.6585,187.93,187.89,9.20437255]
[1730960815752,2.6587,187.92,187.89,9.20437255]
[1730960816554,2.6587,187.92,187.89,6.54527255]
[1730960817052,2.6589,187.91,187.87,6.54527255]
[1730960818350,1.2188,187.97,187.9,6.54527255]
[1730960818555,15.25109363,188.03,187.89,2.8]
[1730960818759,9.18061597,188.03,187.9,2.8]
[1730960818956,2.6579,187.98,187.92,2.6586]
[1730960819260,7.35977766,188.06,187.9,9.34527255]
[1730960819261,6.54527255,187.95,187.9,9.34527255]
[1730960819454,6.54527255,187.95,187.89,2.8]
[1730960819656,6.54527255,187.93,187.89,2.8]
[1730960820050,2.6591,187.89,187.86,2.8]
[1730960820356,2.6591,187.89,187.86,9.34527255]
[1730960820550,6.54527255,187.93,187.86,9.34527255]
[1730960820754,2.6589,187.91,187.86,9.34527255]
[1730960821053,6.54527255,187.93,187.86,9.34527255]
[1730960821670,6.54527255,187.91,187.8,2.5868]
[1730960821861,6.54527255,187.88,187.81,2.8]
[1730960822162,2.6596,187.86,187.81,9.34527255]
[1730960822357,6.54527255,187.88,187.81,2.8]
[1730960822663,6.54527255,187.88,187.82,6.54527255]
[1730960823158,2.6595,187.87,187.82,6.54527255]
[1730960823357,6.54527255,187.88,187.82,6.54527255]
[1730960823866,2.6597,187.85,187.8,2.6602]
[1730960824055,2.6597,187.85,187.82,6.54527255]
[1730960825550,2.6594,187.87,187.82,6.54527255]
[1730960825955,6.54527255,187.89,187.82,6.54527255]
[1730960826256,2.6594,187.87,187.82,6.54527255]
[1730960827855,2.6594,187.87,187.82,9.20527255]
[1730960828458,2.6594,187.87,187.84,6.54527255]
[1730960828866,2.6593,187.88,187.84,6.54527255]
[1730960833564,5.52548465,187.92,187.8,6.54527255]
[1730960833565,6.54527255,187.87,187.8,6.54527255]
[1730960833770,6.54527255,187.85,187.78,6.54527255]
[1730960833964,2.6601,187.83,187.78,6.54527255]
[1730960834268,6.54527255,187.85,187.78,6.54527255]
[1730960834471,2.6602,187.82,187.78,6.54527255]
[1730960839363,1.204,187.86,187.78,6.54527255]
[1730960839671,2.66,187.83,187.78,9.20587255]
[1730960840071,1.204,187.86,187.8,6.54527255]
[1730960840275,5.3917,187.87,187.82,6.54527255]
[1730960840276,2.5917,187.87,187.82,6.54527255]
[1730960840570,2.5917,187.87,187.84,6.54527255]
[1730960841077,5.2511,187.87,187.84,6.54527255]
[1730960841261,1.2907,187.87,187.84,6.54527255]
[1730960841464,12.61575021,187.9,187.84,6.54527255]
[1730960841665,6.54527255,187.9,187.84,6.54527255]
[1730960842269,2.6593,187.88,187.84,9.20507255]
[1730960842969,6.54527255,187.9,187.8,2.8]
[1730960842970,2.6594,187.87,187.83,2.6599]
[1730960843176,2.6594,187.87,187.83,6.54527255]
[1730960844772,2.6594,187.87,187.83,9.20517255]
[1730960845075,6.54527255,187.9,187.8,2.8]
[1730960845076,2.6596,187.86,187.8,2.8]
[1730960845274,2.6596,187.86,187.82,6.54527255]
[1730960845472,6.54527255,187.87,187.81,6.54527255]
[1730960846173,2.6597,187.85,187.81,6.54527255]
[1730960848179,2.66,187.83,187.81,6.54527255]
[1730960848975,2.6597,187.85,187.81,6.54527255]
[1730960849982,2.66,187.83,187.8,6.54527255]
[1730960850275,6.54527255,187.84,187.7,3.3901]
[1730960850474,2.6603,187.81,187.77,6.54527255]
[1730960851582,2.6604,187.8,187.77,6.54527255]
[1730960852289,2.6607,187.78,187.7,3.3901]
[1730960852489,9.15977286,187.78,187.72,6.54527255]
[1730960852984,2.6609,187.77,187.72,6.54527255]
[1730960853989,6.54527255,187.79,187.72,6.54527255]
[1730960854189,2.6606,187.78,187.72,9.20667255]
[1730960854488,2.8,187.81,187.74,6.54527255]
[1730960854489,9.34527255,187.81,187.74,6.54527255]
[1730960855290,6.54527255,187.81,187.74,6.54527255]
[1730960855881,2.6605,187.79,187.74,9.20647255]
[1730960857590,9.20577255,187.79,187.74,9.20647255]
[1730960857788,2.661,187.76,187.72,2.6614]
[1730960857995,2.661,187.76,187.72,6.54527255]
[1730960859598,2.6613,187.74,187.69,2.8]
[1730960859891,6.54527255,187.75,187.68,9.20717255]
[1730960860796,2.6614,187.73,187.68,9.20717255]
[1730960863198,6.54527255,187.73,187.64,1.2488]
[1730960863398,2.6617,187.71,187.66,6.54527255]
[1730960864699,2.6617,187.71,187.66,9.20757255]
[1730960865203,2.6619,187.69,187.65,6.54527255]
[1730960866100,9.20667255,187.73,187.69,2.6619]
[1730960866399,9.34527255,187.75,187.68,6.54527255]
[1730960867302,2.6615,187.72,187.68,6.54527255]
[1730960868501,2.6615,187.72,187.68,9.20737255]
[1730960869607,7.04744835,187.76,187.68,6.54527255]
[1730960869810,6.54527255,187.76,187.69,2.6618]
[1730960869996,3.7968,187.77,187.72,6.54527255]
[1730960871310,2.6613,187.74,187.72,6.54527255]
[1730960872302,2.6613,187.74,187.7,9.20697255]
[1730960874309,9.20637255,187.76,187.7,9.20697255]
[1730960874503,6.54527255,187.76,187.7,9.20697255]
[1730960874709,2.8,187.79,187.72,6.54527255]
[1730960874710,6.54527255,187.78,187.72,6.54527255]
[1730960874903,2.8,187.8,187.72,6.54527255]
[1730960875111,6.54527255,187.78,187.72,6.54527255]
[1730960875708,2.661,187.76,187.72,6.54527255]
[1730960878707,2.661,187.76,187.72,9.20677255]
[1730960880816,2.6608,187.77,187.73,2.6613]
[1730960881120,2.6608,187.77,187.72,6.54527255]
[1730960881620,2.6608,187.77,187.72,9.20677255]
[1730960885820,2.6609,187.76,187.72,9.20677255]
[1730960887522,9.20617255,187.76,187.72,2.6615]
[1730960888620,2.6609,187.76,187.72,2.6615]
[1730960891921,2.6611,187.75,187.71,6.54527255]
[1730960892927,1.2504,187.84,187.74,6.54527255]
[1730960892928,6.54527255,187.82,187.74,6.54527255]
[1730960893126,2.66421369,187.81,187.75,2.6611]
[1730960893324,2.6605,187.8,187.76,6.54527255]
[1730960893520,2.66421369,187.81,187.76,6.54527255]
[1730960894825,2.6606,187.79,187.76,6.54527255]
[1730960895623,6.54527255,187.82,187.76,6.54527255]
[1730960895928,2.6601,187.82,187.77,2.6607]
[1730960896124,7.04744835,187.83,187.77,2.6607]
[1730960896321,7.79567255,187.84,187.77,2.6607]
[1730960896622,6.54527255,187.81,187.77,2.6607]
[1730960897122,2.6605,187.79,187.75,2.6609]
[1730960897324,2.6605,187.79,187.75,6.54527255]
[1730960897821,2.6607,187.78,187.75,6.54527255]
[1730960900316,2.6605,187.79,187.75,6.54527255]
[1730960901626,2.6602,187.81,187.77,6.54527255]
[1730960902019,6.54527255,187.83,187.77,6.54527255]
[1730960902420,2.6604,187.81,187.77,6.54527255]
[1730960902724,6.54527255,187.83,187.77,6.54527255]
[1730960903530,2.6602,187.82,187.77,6.54527255]
[1730960903732,6.54527255,187.83,187.77,6.54527255]
[1730960904424,6.54527255,187.84,187.78,2.6605]
[1730960904622,6.54527255,187.84,187.77,6.54527255]
[1730960905730,2.6604,187.8,187.77,6.54527255]
[1730960907226,6.54527255,187.8,187.69,1.2713]
[1730960907421,2.6608,187.77,187.73,6.54527255]
[1730960908424,6.54527255,187.79,187.72,2.6615]
[1730960908631,2.661,187.76,187.72,6.54527255]
[1730960909721,2.661,187.76,187.72,9.20677255]
[1730960909924,2.6607,187.78,187.74,6.54527255]
[1730960910727,2.6603,187.81,187.77,6.54527255]
[1730960911432,6.54527255,187.84,187.77,6.54527255]
[1730960911823,2.66,187.83,187.77,6.54527255]
[1730960912024,2.66,187.83,187.79,6.54527255]
[1730960912228,8.98837255,187.86,187.79,6.54527255]
[1730960912423,2.6598,187.84,187.79,6.54527255]
[1730960912628,7.78677255,187.86,187.79,6.54527255]
[1730960912930,2.6598,187.85,187.8,2.6603]
[1730960913721,7.78677255,187.86,187.79,6.54527255]
[1730960913920,6.54527255,187.86,187.81,2.6601]
[1730960914125,6.54527255,187.87,187.81,9.20537255]
[1730960914427,2.6595,187.87,187.83,6.54527255]
[1730960914622,6.54527255,187.89,187.83,6.54527255]
[1730960915731,2.6595,187.86,187.83,6.54527255]
[1730960916227,2.8,187.9,187.81,2.8]
[1730960916228,6.54527255,187.87,187.81,2.8]
[1730960916428,2.6598,187.84,187.81,2.8]
[1730960918028,2.6598,187.84,187.8,6.54527255]
[1730960918231,2.6609,187.77,187.71,2.6615]
[1730960918434,6.54527255,187.8,187.73,9.34527255]
[1730960918735,6.54527255,187.78,187.73,6.54527255]
[1730960918923,2.6608,187.77,187.73,6.54527255]
[1730960919636,2.6608,187.77,187.72,2.8]
[1730960920729,2.6608,187.77,187.72,5.4615]
[1730960923930,2.6608,187.77,187.73,6.54527255]
[1730960924734,2.6608,187.77,187.73,9.20657255]
[1730960925835,6.54527255,187.8,187.75,6.54527255]
[1730960926435,2.6608,187.78,187.75,6.54527255]
[1730960927235,6.54527255,187.79,187.73,6.54527255]
[1730960928227,2.68310824,187.82,187.72,2.8]
[1730960928228,6.54527255,187.76,187.72,2.8]
[1730960928434,6.54527255,187.76,187.7,2.8]
[1730960929338,9.20627255,187.76,187.71,6.54527255]
[1730960930733,9.20627255,187.76,187.71,9.20687255]
[1730960933238,2.661,187.76,187.71,9.20687255]
[1730960934740,2.661,187.76,187.72,2.6615]
[1730960935334,2.661,187.76,187.72,9.20677255]
[1730960937241,6.54527255,187.74,187.69,2.6618]
[1730960937535,6.54527255,187.72,187.65,6.54527255]
[1730960938134,9.20677255,187.72,187.67,9.20747255]
[1730960942640,2.6615,187.72,187.68,2.6621]
[1730960943842,1.2354,187.76,187.69,6.54527255]
[1730960944039,1.2354,187.76,187.71,6.54527255]
[1730960944950,1.2354,187.76,187.65,1.211]
[1730960944951,2.6612,187.75,187.69,2.6619]
[1730960945146,6.54527255,187.75,187.69,6.54527255]
[1730960945450,2.6615,187.73,187.69,6.54527255]
[1730960945946,2.6616,187.71,187.67,6.54527255]
[1730960946735,2.6618,187.7,187.67,6.54527255]
[1730960946941,2.6618,187.7,187.65,6.54527255]
[1730960949851,9.34527255,187.73,187.67,6.54527255]
[1730960950044,9.34527255,187.73,187.68,6.54527255]
[1730960950443,2.8,187.73,187.68,6.54527255]
[1730960950842,2.6612,187.74,187.68,9.20727255]
[1730960951239,2.6612,187.74,187.7,6.54527255]
[1730960953751,6.54527255,187.75,187.64,2.8]
[1730960953950,2.6616,187.72,187.67,6.54527255]
[1730960954554,2.6616,187.72,187.66,2.6622]
[1730960954758,2.6617,187.71,187.67,6.54527255]
[1730960957055,6.54527255,187.75,187.7,6.54527255]
[1730960957253,6.54527255,187.75,187.64,2.8]
[1730960957458,6.54527255,187.75,187.69,6.54527255]
[1730960957756,13.63109141,187.75,187.69,6.54527255]
[1730960958157,6.54527255,187.75,187.69,6.54527255]
[1730960958845,2.6614,187.73,187.69,6.54527255]
[1730960960854,2.6614,187.73,187.68,2.6621]
[1730960961057,2.6614,187.73,187.68,9.20737255]
[1730960961458,6.54527255,187.75,187.68,9.20737255]
[1730960961658,2.6615,187.72,187.68,9.20737255]
[1730960962754,9.20687255,187.71,187.6,1.2692]
[1730960962958,6.54527255,187.69,187.63,6.54527255]
[1730960963353,9.20687255,187.71,187.65,6.54527255]
[1730960963555,2.6618,187.7,187.65,6.54527255]
[1730960963851,6.54527255,187.71,187.65,6.54527255]
[1730960964959,2.6619,187.69,187.65,6.54527255]
[1730960965560,2.6618,187.7,187.65,6.54527255]
[1730960966951,2.6618,187.7,187.65,9.20777255]